Workbook

Sheet INFO (VERSION)
A1: SPREADSHEET INFORMATION
A3: This spreadsheet has been produced as a sediment basin sizing tool. Although all care has been taken to ensure formulas and code are correct in the spreadsheet, Topo does not take any responsibility for any errors in this spreadsheet or works that have been designed using this tool.
A8: Topo will aim to release revisions to this spreadsheet as necessary to ensure continual improvement and we welcome feedback to make this design tool better and more user friendly. Please ensure you are on the Topo mailing list to receive these updates
B11: Version | C11: Comments
B12: V1 | C12: First Version for Public Release
B13: V2 | C13: Updated based on new design procedure in 2018 Appendix B release
B14: V3 | C14: Type A empty scour check calculation revised
A16: Topo is a specialist consulting group that is recognised as leaders in the field of erosion and sediment control. We focus on educating our clients and industry and hence we offer this design tool to the public. We hope this assists you in designing sediment basins and encourages industry to achieve better outcomes. Kyle Robson, our Managing Director, was heavily involved in the revision to Appendix B and has been leading the charge in adoption of High Efficiency Sediment basins in Australia (or as they call them, sediment ponds in New Zealand).
A22: If you would like to know more about us, please visit http://www.topo.com.au or feel free to get in contact.
A24: The Topo Team

Sheet BASIN SELECTION
A1: SEDIMENT BASIN SELECTION

Sheet BASIN SIZING - TYPE A
A1: TYPE A SEDIMENT BASIN SIZING
Y3: SEDIMENT STORAGE | AD3: APPROX. DIMENSIONS
B4: BASIN ID | C4: CATCH AREA (HA) | D4: BATTERS (1 IN X) | E4: L:W RATIO | F4: SETTLING DEPTH DS (m) | G4: DESIGN EVENT (ARI) | H4: IX yr, 24 hr (mm/hr) | I4: JAR TEST SETTLE AFTER 15 MINUTES (mm) | J4: QA OPTIMUM (L/s/ha) | K4: QA SELECTED (L/s/ha) | L4: MINIMUM Vs (m3) | M4: MINIMUM As (m2) | N4: GOVERN FACTOR | O4: ACTUAL VS (m3) | P4: DFW (m) | Q4: MANUAL DFW (m) | R4: DECANT NUMBER OF HOLES | S4: DECANT HOLE DIAMETER (mm) | T4: NUMBER OF DECANTS REQUIRED FOR QA SELECTED | U4: NUMBER OF DECANTS ENGAGED AT EMPTY | V4: NUMBER OF DECANTS ENGAGED AT FULL | W4: EMPTY SCOUR CHECK | X4: FULL SCOUR CHECK | Y4: SED STORAGE OPTION? | Z4: RUSLE SOIL LOSS (t/ha/yr) | AA4: CLEAN OUT FREQUENCY (MONTHS) | AB4: MIN SED. STORAGE VOLUME (m3) | AC4: APPROX. REQ SED STORAGE DEPTH (m) | AD4: APPROX. LENGTH AT SPILLWAY (m) | AE4: APPROX. WIDTH AT SPILLWAY (m) | AF4: APPROX. DEPTH AT SPILLWAY (m) | AG4: SETTLING VOLUME (m3) | AH4: APPROX. TOTAL VOLUME AT SPILLWAY (m3) | AJ4: K | AK4: KS | AL4: QL (m3/s/ha) | AM4: DECANT ARM FLOW (L/s) | AN4: EMPTY VELOCITY (cm/s) | AO4: FULL VELOCITY (cm/s)
I5: 100 | J5: =IF(G5=1,0.8*H5^1.08/(AK5*MAX(F5,0.1))^0.6*1000,1.1*H5^1.12/(AK5*MAX(F5,0.1))^0.62*1000) -> 0 | K5: 9 | L5: =AJ5*C5*H5^1.8 -> 0 | M5: =VLOOKUP(I5,'BASIN TABLES'!$K$3:$L$8,2,FALSE)*AL5 -> 0 | N5: =IF(M5*F5<L5,"VOLUME","AREA") -> AREA | O5: =IF(N5="volume",L5,M5*F5) -> 0 | P5: =MAX(0.2,0.1*L5/(MAX(0.1,(AD5-D5*F5)*(AE5-D5*F5)))) -> 0.2 | R5: 200 | S5: 10 | T5: =K5/AM5*C5 -> 0 | U5: 1 | V5: =T5 -> 0 | W5: =IF(AN5>1.5, "NOT OK","OK") -> OK | X5: =IF(AO5>1.5,"NOT OK","OK") -> OK | AB5: =IF(Y5="30% VSET",O5*0.3,Z5*AA5/12*C5*0.8) -> 0 | AC5: =IF(AD5=0,0,MAX(ROUND(AB5/((AD5-(D5+MAX(P5,Q5))*2*F5)*(AE5-(D5+MAX(P5,Q5))*2*F5)),1),0.2)) -> 0 | AD5: =AE5*E5 -> 0 | AE5: =SQRT((MAX(M5,L5/MAX(F5,0.1)))/MAX(E5,0.1))+F5*D5 -> 0 | AF5: =AC5+F5+MAX(P5,Q5) -> 0.2 | AG5: =O5 -> 0 | AH5: =AB5+O5+(AD5-2*D5*F5-MAX(P5,Q5)/2)*(AE5-2*D5*F5-MAX(P5,Q5)/2)*MAX(P5,Q5) -> 0.002 | AJ5: =IF('BASIN SIZING - TYPE A'!G5=1,VLOOKUP(K5,'BASIN TABLES'!$D$4:$E$33,2,FALSE), VLOOKUP(K5,'BASIN TABLES'!$D$4:$F$33,3,FALSE)) -> 19.3 | AK5: =VLOOKUP(I5,'BASIN TABLES'!$K$3:$L$8,2,FALSE) -> 12000 | AL5: =K5*C5/1000 -> 0 | AM5: =VLOOKUP(S5,'BASIN TABLES'!$R$3:$S$18,2,FALSE)*R5 -> 4.5 | AN5: =AM5/MAX(P5,Q5)/2/1000*100 -> 1.125 | AO5: =AM5/0.6/2/1000*100 -> 0.375
I6: 100 | J6: =IF(G6=1,0.8*H6^1.08/(AK6*MAX(F6,0.1))^0.6*1000,1.1*H6^1.12/(AK6*MAX(F6,0.1))^0.62*1000) -> 0 | K6: 9 | L6: =AJ6*C6*H6^1.8 -> 0 | M6: =VLOOKUP(I6,'BASIN TABLES'!$K$3:$L$8,2,FALSE)*AL6 -> 0 | N6: =IF(M6*F6<L6,"VOLUME","AREA") -> AREA | O6: =IF(N6="volume",L6,M6*F6) -> 0 | P6: =MAX(0.2,0.1*L6/(MAX(0.1,(AD6-D6*F6)*(AE6-D6*F6)))) -> 0.2 | R6: 200 | S6: 10 | T6: =K6/AM6*C6 -> 0 | U6: 1 | V6: =T6 -> 0 | W6: =IF(AN6>1.5, "NOT OK","OK") -> OK | X6: =IF(AO6>1.5,"NOT OK","OK") -> OK | AB6: =IF(Y6="30% VSET",O6*0.3,Z6*AA6/12*C6*0.8) -> 0 | AC6: =IF(AD6=0,0,MAX(ROUND(AB6/((AD6-(D6+MAX(P6,Q6))*2*F6)*(AE6-(D6+MAX(P6,Q6))*2*F6)),1),0.2)) -> 0 | AD6: =AE6*E6 -> 0 | AE6: =SQRT((MAX(M6,L6/MAX(F6,0.1)))/MAX(E6,0.1))+F6*D6 -> 0 | AF6: =AC6+F6+MAX(P6,Q6) -> 0.2 | AG6: =O6 -> 0 | AH6: =AB6+O6+(AD6-2*D6*F6-MAX(P6,Q6)/2)*(AE6-2*D6*F6-MAX(P6,Q6)/2)*MAX(P6,Q6) -> 0.002 | AJ6: =IF('BASIN SIZING - TYPE A'!G6=1,VLOOKUP(K6,'BASIN TABLES'!$D$4:$E$33,2,FALSE), VLOOKUP(K6,'BASIN TABLES'!$D$4:$F$33,3,FALSE)) -> 19.3 | AK6: =VLOOKUP(I6,'BASIN TABLES'!$K$3:$L$8,2,FALSE) -> 12000 | AL6: 0 | AM6: =VLOOKUP(S6,'BASIN TABLES'!$R$3:$S$18,2,FALSE)*R6 -> 4.5 | AN6: =AM6/MAX(P6,Q6)/2/1000*100 -> 1.125 | AO6: =AM6/0.6/2/1000*100 -> 0.375
I7: 100 | J7: 0 | K7: 9 | L7: 0 | M7: =VLOOKUP(I7,'BASIN TABLES'!$K$3:$L$8,2,FALSE)*AL7 -> 0 | N7: AREA | O7: 0 | P7: 0.2 | R7: 200 | S7: 10 | T7: 0 | U7: 1 | V7: 0 | W7: OK | X7: OK | AB7: 0 | AC7: 0 | AD7: 0 | AE7: 0 | AF7: 0.2 | AG7: 0 | AH7: 0.002 | AJ7: =IF('BASIN SIZING - TYPE A'!G7=1,VLOOKUP(K7,'BASIN TABLES'!$D$4:$E$33,2,FALSE), VLOOKUP(K7,'BASIN TABLES'!$D$4:$F$33,3,FALSE)) -> 19.3 | AK7: =VLOOKUP(I7,'BASIN TABLES'!$K$3:$L$8,2,FALSE) -> 12000 | AL7: 0 | AM7: =VLOOKUP(S7,'BASIN TABLES'!$R$3:$S$18,2,FALSE)*R7 -> 4.5 | AN7: 1.125 | AO7: 0.375
I8: 100 | J8: 0 | K8: 9 | L8: 0 | M8: =VLOOKUP(I8,'BASIN TABLES'!$K$3:$L$8,2,FALSE)*AL8 -> 0 | N8: AREA | O8: 0 | P8: 0.2 | R8: 200 | S8: 10 | T8: 0 | U8: 1 | V8: 0 | W8: OK | X8: OK | AB8: 0 | AC8: 0 | AD8: 0 | AE8: 0 | AF8: 0.2 | AG8: 0 | AH8: 0.002 | AJ8: =IF('BASIN SIZING - TYPE A'!G8=1,VLOOKUP(K8,'BASIN TABLES'!$D$4:$E$33,2,FALSE), VLOOKUP(K8,'BASIN TABLES'!$D$4:$F$33,3,FALSE)) -> 19.3 | AK8: =VLOOKUP(I8,'BASIN TABLES'!$K$3:$L$8,2,FALSE) -> 12000 | AL8: 0 | AM8: =VLOOKUP(S8,'BASIN TABLES'!$R$3:$S$18,2,FALSE)*R8 -> 4.5 | AN8: 1.125 | AO8: 0.375
I9: 100 | J9: 0 | K9: 9 | L9: 0 | M9: =VLOOKUP(I9,'BASIN TABLES'!$K$3:$L$8,2,FALSE)*AL9 -> 0 | N9: AREA | O9: 0 | P9: 0.2 | R9: 200 | S9: 10 | T9: 0 | U9: 1 | V9: 0 | W9: OK | X9: OK | AB9: 0 | AC9: 0 | AD9: 0 | AE9: 0 | AF9: 0.2 | AG9: 0 | AH9: 0.002 | AJ9: =IF('BASIN SIZING - TYPE A'!G9=1,VLOOKUP(K9,'BASIN TABLES'!$D$4:$E$33,2,FALSE), VLOOKUP(K9,'BASIN TABLES'!$D$4:$F$33,3,FALSE)) -> 19.3 | AK9: =VLOOKUP(I9,'BASIN TABLES'!$K$3:$L$8,2,FALSE) -> 12000 | AL9: 0 | AM9: =VLOOKUP(S9,'BASIN TABLES'!$R$3:$S$18,2,FALSE)*R9 -> 4.5 | AN9: 1.125 | AO9: 0.375
I10: 100 | J10: 0 | K10: 9 | L10: 0 | M10: =VLOOKUP(I10,'BASIN TABLES'!$K$3:$L$8,2,FALSE)*AL10 -> 0 | N10: AREA | O10: 0 | P10: 0.2 | R10: 200 | S10: 10 | T10: 0 | U10: 1 | V10: 0 | W10: OK | X10: OK | AB10: 0 | AC10: 0 | AD10: 0 | AE10: 0 | AF10: 0.2 | AG10: 0 | AH10: 0.002 | AJ10: =IF('BASIN SIZING - TYPE A'!G10=1,VLOOKUP(K10,'BASIN TABLES'!$D$4:$E$33,2,FALSE), VLOOKUP(K10,'BASIN TABLES'!$D$4:$F$33,3,FALSE)) -> 19.3 | AK10: =VLOOKUP(I10,'BASIN TABLES'!$K$3:$L$8,2,FALSE) -> 12000 | AL10: 0 | AM10: =VLOOKUP(S10,'BASIN TABLES'!$R$3:$S$18,2,FALSE)*R10 -> 4.5 | AN10: 1.125 | AO10: 0.375
I11: 100 | J11: 0 | K11: 9 | L11: 0 | M11: =VLOOKUP(I11,'BASIN TABLES'!$K$3:$L$8,2,FALSE)*AL11 -> 0 | N11: AREA | O11: 0 | P11: 0.2 | R11: 200 | S11: 10 | T11: 0 | U11: 1 | V11: 0 | W11: OK | X11: OK | AB11: 0 | AC11: 0 | AD11: 0 | AE11: 0 | AF11: 0.2 | AG11: 0 | AH11: 0.002 | AJ11: =IF('BASIN SIZING - TYPE A'!G11=1,VLOOKUP(K11,'BASIN TABLES'!$D$4:$E$33,2,FALSE), VLOOKUP(K11,'BASIN TABLES'!$D$4:$F$33,3,FALSE)) -> 19.3 | AK11: =VLOOKUP(I11,'BASIN TABLES'!$K$3:$L$8,2,FALSE) -> 12000 | AL11: 0 | AM11: =VLOOKUP(S11,'BASIN TABLES'!$R$3:$S$18,2,FALSE)*R11 -> 4.5 | AN11: 1.125 | AO11: 0.375
I12: 100 | J12: 0 | K12: 9 | L12: 0 | M12: =VLOOKUP(I12,'BASIN TABLES'!$K$3:$L$8,2,FALSE)*AL12 -> 0 | N12: AREA | O12: 0 | P12: 0.2 | R12: 200 | S12: 10 | T12: 0 | U12: 1 | V12: 0 | W12: OK | X12: OK | AB12: 0 | AC12: 0 | AD12: 0 | AE12: 0 | AF12: 0.2 | AG12: 0 | AH12: 0.002 | AJ12: =IF('BASIN SIZING - TYPE A'!G12=1,VLOOKUP(K12,'BASIN TABLES'!$D$4:$E$33,2,FALSE), VLOOKUP(K12,'BASIN TABLES'!$D$4:$F$33,3,FALSE)) -> 19.3 | AK12: =VLOOKUP(I12,'BASIN TABLES'!$K$3:$L$8,2,FALSE) -> 12000 | AL12: 0 | AM12: =VLOOKUP(S12,'BASIN TABLES'!$R$3:$S$18,2,FALSE)*R12 -> 4.5 | AN12: 1.125 | AO12: 0.375
I13: 100 | J13: 0 | K13: 9 | L13: 0 | M13: =VLOOKUP(I13,'BASIN TABLES'!$K$3:$L$8,2,FALSE)*AL13 -> 0 | N13: AREA | O13: 0 | P13: 0.2 | R13: 200 | S13: 10 | T13: 0 | U13: 1 | V13: 0 | W13: OK | X13: OK | AB13: 0 | AC13: 0 | AD13: 0 | AE13: 0 | AF13: 0.2 | AG13: 0 | AH13: 0.002 | AJ13: =IF('BASIN SIZING - TYPE A'!G13=1,VLOOKUP(K13,'BASIN TABLES'!$D$4:$E$33,2,FALSE), VLOOKUP(K13,'BASIN TABLES'!$D$4:$F$33,3,FALSE)) -> 19.3 | AK13: =VLOOKUP(I13,'BASIN TABLES'!$K$3:$L$8,2,FALSE) -> 12000 | AL13: 0 | AM13: =VLOOKUP(S13,'BASIN TABLES'!$R$3:$S$18,2,FALSE)*R13 -> 4.5 | AN13: 1.125 | AO13: 0.375
I14: 100 | J14: 0 | K14: 9 | L14: 0 | M14: =VLOOKUP(I14,'BASIN TABLES'!$K$3:$L$8,2,FALSE)*AL14 -> 0 | N14: AREA | O14: 0 | P14: 0.2 | R14: 200 | S14: 10 | T14: 0 | U14: 1 | V14: 0 | W14: OK | X14: OK | AB14: 0 | AC14: 0 | AD14: 0 | AE14: 0 | AF14: 0.2 | AG14: 0 | AH14: 0.002 | AJ14: =IF('BASIN SIZING - TYPE A'!G14=1,VLOOKUP(K14,'BASIN TABLES'!$D$4:$E$33,2,FALSE), VLOOKUP(K14,'BASIN TABLES'!$D$4:$F$33,3,FALSE)) -> 19.3 | AK14: =VLOOKUP(I14,'BASIN TABLES'!$K$3:$L$8,2,FALSE) -> 12000 | AL14: 0 | AM14: =VLOOKUP(S14,'BASIN TABLES'!$R$3:$S$18,2,FALSE)*R14 -> 4.5 | AN14: 1.125 | AO14: 0.375
I15: 100 | J15: 0 | K15: 9 | L15: 0 | M15: =VLOOKUP(I15,'BASIN TABLES'!$K$3:$L$8,2,FALSE)*AL15 -> 0 | N15: AREA | O15: 0 | P15: 0.2 | R15: 200 | S15: 10 | T15: 0 | U15: 1 | V15: 0 | W15: OK | X15: OK | AB15: 0 | AC15: 0 | AD15: 0 | AE15: 0 | AF15: 0.2 | AG15: 0 | AH15: 0.002 | AJ15: =IF('BASIN SIZING - TYPE A'!G15=1,VLOOKUP(K15,'BASIN TABLES'!$D$4:$E$33,2,FALSE), VLOOKUP(K15,'BASIN TABLES'!$D$4:$F$33,3,FALSE)) -> 19.3 | AK15: =VLOOKUP(I15,'BASIN TABLES'!$K$3:$L$8,2,FALSE) -> 12000 | AL15: 0 | AM15: =VLOOKUP(S15,'BASIN TABLES'!$R$3:$S$18,2,FALSE)*R15 -> 4.5 | AN15: 1.125 | AO15: 0.375
I16: 100 | J16: 0 | K16: 9 | L16: 0 | M16: =VLOOKUP(I16,'BASIN TABLES'!$K$3:$L$8,2,FALSE)*AL16 -> 0 | N16: AREA | O16: 0 | P16: 0.2 | R16: 200 | S16: 10 | T16: 0 | U16: 1 | V16: 0 | W16: OK | X16: OK | AB16: 0 | AC16: 0 | AD16: 0 | AE16: 0 | AF16: 0.2 | AG16: 0 | AH16: 0.002 | AJ16: =IF('BASIN SIZING - TYPE A'!G16=1,VLOOKUP(K16,'BASIN TABLES'!$D$4:$E$33,2,FALSE), VLOOKUP(K16,'BASIN TABLES'!$D$4:$F$33,3,FALSE)) -> 19.3 | AK16: =VLOOKUP(I16,'BASIN TABLES'!$K$3:$L$8,2,FALSE) -> 12000 | AL16: 0 | AM16: =VLOOKUP(S16,'BASIN TABLES'!$R$3:$S$18,2,FALSE)*R16 -> 4.5 | AN16: 1.125 | AO16: 0.375
I17: 100 | J17: 0 | K17: 9 | L17: 0 | M17: =VLOOKUP(I17,'BASIN TABLES'!$K$3:$L$8,2,FALSE)*AL17 -> 0 | N17: AREA | O17: 0 | P17: 0.2 | R17: 200 | S17: 10 | T17: 0 | U17: 1 | V17: 0 | W17: OK | X17: OK | AB17: 0 | AC17: 0 | AD17: 0 | AE17: 0 | AF17: 0.2 | AG17: 0 | AH17: 0.002 | AJ17: =IF('BASIN SIZING - TYPE A'!G17=1,VLOOKUP(K17,'BASIN TABLES'!$D$4:$E$33,2,FALSE), VLOOKUP(K17,'BASIN TABLES'!$D$4:$F$33,3,FALSE)) -> 19.3 | AK17: =VLOOKUP(I17,'BASIN TABLES'!$K$3:$L$8,2,FALSE) -> 12000 | AL17: 0 | AM17: =VLOOKUP(S17,'BASIN TABLES'!$R$3:$S$18,2,FALSE)*R17 -> 4.5 | AN17: 1.125 | AO17: 0.375
I18: 100 | J18: 0 | K18: 9 | L18: 0 | M18: =VLOOKUP(I18,'BASIN TABLES'!$K$3:$L$8,2,FALSE)*AL18 -> 0 | N18: AREA | O18: 0 | P18: 0.2 | R18: 200 | S18: 10 | T18: 0 | U18: 1 | V18: 0 | W18: OK | X18: OK | AB18: 0 | AC18: 0 | AD18: 0 | AE18: 0 | AF18: 0.2 | AG18: 0 | AH18: 0.002 | AJ18: =IF('BASIN SIZING - TYPE A'!G18=1,VLOOKUP(K18,'BASIN TABLES'!$D$4:$E$33,2,FALSE), VLOOKUP(K18,'BASIN TABLES'!$D$4:$F$33,3,FALSE)) -> 19.3 | AK18: =VLOOKUP(I18,'BASIN TABLES'!$K$3:$L$8,2,FALSE) -> 12000 | AL18: 0 | AM18: =VLOOKUP(S18,'BASIN TABLES'!$R$3:$S$18,2,FALSE)*R18 -> 4.5 | AN18: 1.125 | AO18: 0.375
I19: 100 | J19: 0 | K19: 9 | L19: 0 | M19: =VLOOKUP(I19,'BASIN TABLES'!$K$3:$L$8,2,FALSE)*AL19 -> 0 | N19: AREA | O19: 0 | P19: 0.2 | R19: 200 | S19: 10 | T19: 0 | U19: 1 | V19: 0 | W19: OK | X19: OK | AB19: 0 | AC19: 0 | AD19: 0 | AE19: 0 | AF19: 0.2 | AG19: 0 | AH19: 0.002 | AJ19: =IF('BASIN SIZING - TYPE A'!G19=1,VLOOKUP(K19,'BASIN TABLES'!$D$4:$E$33,2,FALSE), VLOOKUP(K19,'BASIN TABLES'!$D$4:$F$33,3,FALSE)) -> 19.3 | AK19: =VLOOKUP(I19,'BASIN TABLES'!$K$3:$L$8,2,FALSE) -> 12000 | AL19: 0 | AM19: =VLOOKUP(S19,'BASIN TABLES'!$R$3:$S$18,2,FALSE)*R19 -> 4.5 | AN19: 1.125 | AO19: 0.375
I20: 100 | J20: 0 | K20: 9 | L20: 0 | M20: =VLOOKUP(I20,'BASIN TABLES'!$K$3:$L$8,2,FALSE)*AL20 -> 0 | N20: AREA | O20: 0 | P20: 0.2 | R20: 200 | S20: 10 | T20: 0 | U20: 1 | V20: 0 | W20: OK | X20: OK | AB20: 0 | AC20: 0 | AD20: 0 | AE20: 0 | AF20: 0.2 | AG20: 0 | AH20: 0.002 | AJ20: =IF('BASIN SIZING - TYPE A'!G20=1,VLOOKUP(K20,'BASIN TABLES'!$D$4:$E$33,2,FALSE), VLOOKUP(K20,'BASIN TABLES'!$D$4:$F$33,3,FALSE)) -> 19.3 | AK20: =VLOOKUP(I20,'BASIN TABLES'!$K$3:$L$8,2,FALSE) -> 12000 | AL20: 0 | AM20: =VLOOKUP(S20,'BASIN TABLES'!$R$3:$S$18,2,FALSE)*R20 -> 4.5 | AN20: 1.125 | AO20: 0.375
I21: 100 | J21: 0 | K21: 9 | L21: 0 | M21: =VLOOKUP(I21,'BASIN TABLES'!$K$3:$L$8,2,FALSE)*AL21 -> 0 | N21: AREA | O21: 0 | P21: 0.2 | R21: 200 | S21: 10 | T21: 0 | U21: 1 | V21: 0 | W21: OK | X21: OK | AB21: 0 | AC21: 0 | AD21: 0 | AE21: 0 | AF21: 0.2 | AG21: 0 | AH21: 0.002 | AJ21: =IF('BASIN SIZING - TYPE A'!G21=1,VLOOKUP(K21,'BASIN TABLES'!$D$4:$E$33,2,FALSE), VLOOKUP(K21,'BASIN TABLES'!$D$4:$F$33,3,FALSE)) -> 19.3 | AK21: =VLOOKUP(I21,'BASIN TABLES'!$K$3:$L$8,2,FALSE) -> 12000 | AL21: 0 | AM21: =VLOOKUP(S21,'BASIN TABLES'!$R$3:$S$18,2,FALSE)*R21 -> 4.5 | AN21: 1.125 | AO21: 0.375
I22: 100 | J22: 0 | K22: 9 | L22: 0 | M22: =VLOOKUP(I22,'BASIN TABLES'!$K$3:$L$8,2,FALSE)*AL22 -> 0 | N22: AREA | O22: 0 | P22: 0.2 | R22: 200 | S22: 10 | T22: 0 | U22: 1 | V22: 0 | W22: OK | X22: OK | AB22: 0 | AC22: 0 | AD22: 0 | AE22: 0 | AF22: 0.2 | AG22: 0 | AH22: 0.002 | AJ22: =IF('BASIN SIZING - TYPE A'!G22=1,VLOOKUP(K22,'BASIN TABLES'!$D$4:$E$33,2,FALSE), VLOOKUP(K22,'BASIN TABLES'!$D$4:$F$33,3,FALSE)) -> 19.3 | AK22: =VLOOKUP(I22,'BASIN TABLES'!$K$3:$L$8,2,FALSE) -> 12000 | AL22: 0 | AM22: =VLOOKUP(S22,'BASIN TABLES'!$R$3:$S$18,2,FALSE)*R22 -> 4.5 | AN22: 1.125 | AO22: 0.375
I23: 100 | J23: 0 | K23: 9 | L23: 0 | M23: =VLOOKUP(I23,'BASIN TABLES'!$K$3:$L$8,2,FALSE)*AL23 -> 0 | N23: AREA | O23: 0 | P23: 0.2 | R23: 200 | S23: 10 | T23: 0 | U23: 1 | V23: 0 | W23: OK | X23: OK | AB23: 0 | AC23: 0 | AD23: 0 | AE23: 0 | AF23: 0.2 | AG23: 0 | AH23: 0.002 | AJ23: =IF('BASIN SIZING - TYPE A'!G23=1,VLOOKUP(K23,'BASIN TABLES'!$D$4:$E$33,2,FALSE), VLOOKUP(K23,'BASIN TABLES'!$D$4:$F$33,3,FALSE)) -> 19.3 | AK23: =VLOOKUP(I23,'BASIN TABLES'!$K$3:$L$8,2,FALSE) -> 12000 | AL23: 0 | AM23: =VLOOKUP(S23,'BASIN TABLES'!$R$3:$S$18,2,FALSE)*R23 -> 4.5 | AN23: 1.125 | AO23: 0.375
I24: 100 | J24: 0 | K24: 9 | L24: 0 | M24: =VLOOKUP(I24,'BASIN TABLES'!$K$3:$L$8,2,FALSE)*AL24 -> 0 | N24: AREA | O24: 0 | P24: 0.2 | R24: 200 | S24: 10 | T24: 0 | U24: 1 | V24: 0 | W24: OK | X24: OK | AB24: 0 | AC24: 0 | AD24: 0 | AE24: 0 | AF24: 0.2 | AG24: 0 | AH24: 0.002 | AJ24: =IF('BASIN SIZING - TYPE A'!G24=1,VLOOKUP(K24,'BASIN TABLES'!$D$4:$E$33,2,FALSE), VLOOKUP(K24,'BASIN TABLES'!$D$4:$F$33,3,FALSE)) -> 19.3 | AK24: =VLOOKUP(I24,'BASIN TABLES'!$K$3:$L$8,2,FALSE) -> 12000 | AL24: 0 | AM24: =VLOOKUP(S24,'BASIN TABLES'!$R$3:$S$18,2,FALSE)*R24 -> 4.5 | AN24: 1.125 | AO24: 0.375

Sheet BASIN SIZING - TYPE B
A1: TYPE B SEDIMENT BASIN SIZING - OPTION 2B
P3: SEDIMENT STORAGE | U3: APPROX. DIMENSIONS
B4: BASIN ID | C4: CATCH AREA (HA) | D4: BATTERS (1 IN X) | E4: L:W RATIO | F4: SETTLING DEPTH DS (m) | G4: C1 | H4: TIME OF CONC (MINS) | I4: I1 (mm/hr) | J4: 0.5Q1 (m3/s) | K4: JAR TEST SETTLE AFTER 15 MINUTES (mm) | L4: FLOC SETTLE DEPTH DF (m) | M4: MINIMUM As (m2) | N4: ACTUAL VS (m3) | O4: SCOUR CHECK | P4: SED STORAGE OPTION? | Q4: RUSLE SOIL LOSS (t/ha/yr) | R4: CLEAN OUT FREQUENCY (MONTHS) | S4: MIN SED. STORAGE VOLUME (m3) | T4: APPROX. REQ SED STORAGE DEPTH (m) | U4: APPROX. LENGTH AT SPILLWAY (m) | V4: APPROX. WIDTH AT SPILLWAY (m) | W4: APPROX. DEPTH AT SPILLWAY (m) | X4: SETTLING VOLUME (m3) | Y4: TOTAL VOLUME AT SPILLWAY (m3) | AA4: KS | AB4: SCOUR VELOCITY - TYPE B
J5: =G5*I5*C5/360*0.5 -> 0 | K5: 100 | L5: 0.6 | M5: =(L5/MAX(F5,0.1))*AA5*J5 -> 0 | N5: =M5*F5 -> 0 | O5: =IF(AB5>0.015,"NOT OK","OK") -> OK | S5: =IF(P5="30% VSET",0.3*N5,Q5*R5/12*C5*0.8) -> 0 | T5: =IF(U5=0,0,MAX(ROUND(S5/((U5-D5*2*F5)*(V5-D5*2*F5)),1),0.2)) -> 0 | U5: =V5*E5 -> 0 | V5: =SQRT(M5/MAX(E5,0.1))+F5*D5 -> 0 | W5: =T5+F5 -> 0 | X5: =N5 -> 0 | Y5: =S5+N5 -> 0 | AA5: =VLOOKUP(K5,'BASIN TABLES'!$K$3:$L$8,2,FALSE) -> 12000 | AB5: =J5/MAX(((V5-L5*D5)*L5),0.01) -> 0
J6: =G6*I6*C6/360*0.5 -> 0 | K6: 100 | L6: 0.6 | M6: =(L6/MAX(F6,0.1))*AA6*J6 -> 0 | N6: =M6*F6 -> 0 | O6: =IF(AB6>0.015,"NOT OK","OK") -> OK | S6: =IF(P6="30% VSET",0.3*N6,Q6*R6/12*C6*0.8) -> 0 | T6: =IF(U6=0,0,MAX(ROUND(S6/((U6-D6*2*F6)*(V6-D6*2*F6)),1),0.2)) -> 0 | U6: =V6*E6 -> 0 | V6: =SQRT(M6/MAX(E6,0.1))+F6*D6 -> 0 | W6: =T6+F6 -> 0 | X6: =N6 -> 0 | Y6: =S6+N6 -> 0 | AA6: =VLOOKUP(K6,'BASIN TABLES'!$K$3:$L$8,2,FALSE) -> 12000 | AB6: =J6/MAX(((V6-L6*D6)*L6),0.01) -> 0
J7: 0 | K7: 100 | L7: 0.6 | M7: 0 | N7: 0 | O7: OK | S7: 0 | T7: 0 | U7: 0 | V7: 0 | W7: 0 | X7: 0 | Y7: 0 | AA7: =VLOOKUP(K7,'BASIN TABLES'!$K$3:$L$8,2,FALSE) -> 12000 | AB7: 0
J8: 0 | K8: 100 | L8: 0.6 | M8: 0 | N8: 0 | O8: OK | S8: 0 | T8: 0 | U8: 0 | V8: 0 | W8: 0 | X8: 0 | Y8: 0 | AA8: =VLOOKUP(K8,'BASIN TABLES'!$K$3:$L$8,2,FALSE) -> 12000 | AB8: 0
J9: 0 | K9: 100 | L9: 0.6 | M9: 0 | N9: 0 | O9: OK | S9: 0 | T9: 0 | U9: 0 | V9: 0 | W9: 0 | X9: 0 | Y9: 0 | AA9: =VLOOKUP(K9,'BASIN TABLES'!$K$3:$L$8,2,FALSE) -> 12000 | AB9: 0
J10: 0 | K10: 100 | L10: 0.6 | M10: 0 | N10: 0 | O10: OK | S10: 0 | T10: 0 | U10: 0 | V10: 0 | W10: 0 | X10: 0 | Y10: 0 | AA10: =VLOOKUP(K10,'BASIN TABLES'!$K$3:$L$8,2,FALSE) -> 12000 | AB10: 0
J11: 0 | K11: 100 | L11: 0.6 | M11: 0 | N11: 0 | O11: OK | S11: 0 | T11: 0 | U11: 0 | V11: 0 | W11: 0 | X11: 0 | Y11: 0 | AA11: =VLOOKUP(K11,'BASIN TABLES'!$K$3:$L$8,2,FALSE) -> 12000 | AB11: 0
J12: 0 | K12: 100 | L12: 0.6 | M12: 0 | N12: 0 | O12: OK | S12: 0 | T12: 0 | U12: 0 | V12: 0 | W12: 0 | X12: 0 | Y12: 0 | AA12: =VLOOKUP(K12,'BASIN TABLES'!$K$3:$L$8,2,FALSE) -> 12000 | AB12: 0
J13: 0 | K13: 100 | L13: 0.6 | M13: 0 | N13: 0 | O13: OK | S13: 0 | T13: 0 | U13: 0 | V13: 0 | W13: 0 | X13: 0 | Y13: 0 | AA13: =VLOOKUP(K13,'BASIN TABLES'!$K$3:$L$8,2,FALSE) -> 12000 | AB13: 0
J14: 0 | K14: 100 | L14: 0.6 | M14: 0 | N14: 0 | O14: OK | S14: 0 | T14: 0 | U14: 0 | V14: 0 | W14: 0 | X14: 0 | Y14: 0 | AA14: =VLOOKUP(K14,'BASIN TABLES'!$K$3:$L$8,2,FALSE) -> 12000 | AB14: 0
J15: 0 | K15: 100 | L15: 0.6 | M15: 0 | N15: 0 | O15: OK | S15: 0 | T15: 0 | U15: 0 | V15: 0 | W15: 0 | X15: 0 | Y15: 0 | AA15: =VLOOKUP(K15,'BASIN TABLES'!$K$3:$L$8,2,FALSE) -> 12000 | AB15: 0
J16: 0 | K16: 100 | L16: 0.6 | M16: 0 | N16: 0 | O16: OK | S16: 0 | T16: 0 | U16: 0 | V16: 0 | W16: 0 | X16: 0 | Y16: 0 | AA16: =VLOOKUP(K16,'BASIN TABLES'!$K$3:$L$8,2,FALSE) -> 12000 | AB16: 0
J17: 0 | K17: 100 | L17: 0.6 | M17: 0 | N17: 0 | O17: OK | S17: 0 | T17: 0 | U17: 0 | V17: 0 | W17: 0 | X17: 0 | Y17: 0 | AA17: =VLOOKUP(K17,'BASIN TABLES'!$K$3:$L$8,2,FALSE) -> 12000 | AB17: 0
J18: 0 | K18: 100 | L18: 0.6 | M18: 0 | N18: 0 | O18: OK | S18: 0 | T18: 0 | U18: 0 | V18: 0 | W18: 0 | X18: 0 | Y18: 0 | AA18: =VLOOKUP(K18,'BASIN TABLES'!$K$3:$L$8,2,FALSE) -> 12000 | AB18: 0
J19: 0 | K19: 100 | L19: 0.6 | M19: 0 | N19: 0 | O19: OK | S19: 0 | T19: 0 | U19: 0 | V19: 0 | W19: 0 | X19: 0 | Y19: 0 | AA19: =VLOOKUP(K19,'BASIN TABLES'!$K$3:$L$8,2,FALSE) -> 12000 | AB19: 0
J20: 0 | K20: 100 | L20: 0.6 | M20: 0 | N20: 0 | O20: OK | S20: 0 | T20: 0 | U20: 0 | V20: 0 | W20: 0 | X20: 0 | Y20: 0 | AA20: =VLOOKUP(K20,'BASIN TABLES'!$K$3:$L$8,2,FALSE) -> 12000 | AB20: 0
J21: 0 | K21: 100 | L21: 0.6 | M21: 0 | N21: 0 | O21: OK | S21: 0 | T21: 0 | U21: 0 | V21: 0 | W21: 0 | X21: 0 | Y21: 0 | AA21: =VLOOKUP(K21,'BASIN TABLES'!$K$3:$L$8,2,FALSE) -> 12000 | AB21: 0
J22: 0 | K22: 100 | L22: 0.6 | M22: 0 | N22: 0 | O22: OK | S22: 0 | T22: 0 | U22: 0 | V22: 0 | W22: 0 | X22: 0 | Y22: 0 | AA22: =VLOOKUP(K22,'BASIN TABLES'!$K$3:$L$8,2,FALSE) -> 12000 | AB22: 0
J23: 0 | K23: 100 | L23: 0.6 | M23: 0 | N23: 0 | O23: OK | S23: 0 | T23: 0 | U23: 0 | V23: 0 | W23: 0 | X23: 0 | Y23: 0 | AA23: =VLOOKUP(K23,'BASIN TABLES'!$K$3:$L$8,2,FALSE) -> 12000 | AB23: 0
J24: 0 | K24: 100 | L24: 0.6 | M24: 0 | N24: 0 | O24: OK | S24: 0 | T24: 0 | U24: 0 | V24: 0 | W24: 0 | X24: 0 | Y24: 0 | AA24: =VLOOKUP(K24,'BASIN TABLES'!$K$3:$L$8,2,FALSE) -> 12000 | AB24: 0

Sheet BASIN SIZING - TYPE D
A1: TYPE D SEDIMENT BASIN SIZING
B2: NOTE - TYPE D BASINS ARE UNLIKELY TO COMPLY WITH QLD STATE PLANNING POLICY
K3: SEDIMENT STORAGE | P3: APPROX. DIMENSIONS
B4: BASIN ID | C4: CATCH AREA (HA) | D4: BATTERS (1 IN X) | E4: L:W RATIO | F4: SETTLING DEPTH DS (m) | G4: %ILE | H4: R (5 DAY, X%ILE) | I4: CV | J4: VSET | K4: SED STORAGE OPTION? | L4: RUSLE SOIL LOSS (t/ha/yr) | M4: CLEAN OUT FREQUENCY (MONTHS) | N4: VSS | O4: APPROX. REQ SED STORAGE DEPTH (m) | P4: APPROX. LENGTH AT SPILLWAY (m) | Q4: APPROX. WIDTH AT SPILLWAY (m) | R4: APPROX. DEPTH AT SPILLWAY (m) | S4: SETTLING VOLUME (m3) | T4: TOTAL VOLUME AT SPILLWAY (m3)
J5: =10*I5*C5*H5 -> 0 | N5: =IF(K5="50% VSET",0.5*J5,L5*0.8*C5*M5/12) -> 0 | O5: =IF(P5=0,0,ROUND(N5/((P5-D5*2*F5)*(Q5-D5*2*F5)),1)) -> 0 | P5: =Q5*E5 -> 0 | Q5: =IF(E5=0,0,IF(F5=0,0,SQRT(J5/F5/E5)+F5*D5)) -> 0 | R5: =F5+O5 -> 0 | S5: =J5 -> 0 | T5: =N5+J5 -> 0
J6: 0 | N6: =IF(K6="50% VSET",0.5*J6,L6*0.8*C6*M6/12) -> 0 | O6: =IF(P6=0,0,ROUND(N6/((P6-D6*2*F6)*(Q6-D6*2*F6)),1)) -> 0 | P6: =Q6*E6 -> 0 | Q6: =IF(E6=0,0,IF(F6=0,0,SQRT(J6/F6/E6)+F6*D6)) -> 0 | R6: =F6+O6 -> 0 | S6: =J6 -> 0 | T6: =N6+J6 -> 0
J7: 0 | N7: =IF(K7="50% VSET",0.5*J7,L7*0.8*C7*M7/12) -> 0 | O7: 0 | P7: 0 | Q7: 0 | R7: 0 | S7: 0 | T7: 0
J8: 0 | N8: =IF(K8="50% VSET",0.5*J8,L8*0.8*C8*M8/12) -> 0 | O8: 0 | P8: 0 | Q8: 0 | R8: 0 | S8: 0 | T8: 0
J9: 0 | N9: 0 | O9: 0 | P9: 0 | Q9: 0 | R9: 0 | S9: 0 | T9: 0
J10: 0 | N10: 0 | O10: 0 | P10: 0 | Q10: 0 | R10: 0 | S10: 0 | T10: 0
J11: 0 | N11: 0 | O11: 0 | P11: 0 | Q11: 0 | R11: 0 | S11: 0 | T11: 0
J12: 0 | N12: 0 | O12: 0 | P12: 0 | Q12: 0 | R12: 0 | S12: 0 | T12: 0
J13: 0 | N13: 0 | O13: 0 | P13: 0 | Q13: 0 | R13: 0 | S13: 0 | T13: 0
J14: 0 | N14: 0 | O14: 0 | P14: 0 | Q14: 0 | R14: 0 | S14: 0 | T14: 0
J15: 0 | N15: 0 | O15: 0 | P15: 0 | Q15: 0 | R15: 0 | S15: 0 | T15: 0
J16: 0 | N16: 0 | O16: 0 | P16: 0 | Q16: 0 | R16: 0 | S16: 0 | T16: 0
J17: 0 | N17: 0 | O17: 0 | P17: 0 | Q17: 0 | R17: 0 | S17: 0 | T17: 0
J18: 0 | N18: 0 | O18: 0 | P18: 0 | Q18: 0 | R18: 0 | S18: 0 | T18: 0
J19: 0 | N19: 0 | O19: 0 | P19: 0 | Q19: 0 | R19: 0 | S19: 0 | T19: 0
J20: 0 | N20: 0 | O20: 0 | P20: 0 | Q20: 0 | R20: 0 | S20: 0 | T20: 0
J21: 0 | N21: 0 | O21: 0 | P21: 0 | Q21: 0 | R21: 0 | S21: 0 | T21: 0
J22: 0 | N22: 0 | O22: 0 | P22: 0 | Q22: 0 | R22: 0 | S22: 0 | T22: 0
J23: 0 | N23: 0 | O23: 0 | P23: 0 | Q23: 0 | R23: 0 | S23: 0 | T23: 0
J24: 0 | N24: 0 | O24: 0 | P24: 0 | Q24: 0 | R24: 0 | S24: 0 | T24: 0

Sheet BASIN TABLES (hidden)
A1: TABLE B10 - DESIGN EVENT | D1: TABLE B11 - K | H1: TABLE B12 - KS | K1: TABLE B14 | R1: DECANT SIZING
A2: DESIGN EVENT | D2: LOW FLOW DECANT RATE | E2: K | H2: POND WATER TEMP | I2: KS | K2: JAR TEST SETTLEMENT | L2: KS | N2: %ILE | P2: TYPE D SED STORAGE | R2: DECANT DIAMETER | S2: FLOW RATE | U2: TYPE A/B SED STORAGE
A3: 1 | B3: SHORT-TERM | E3: 1 | F3: 5 | H3: 5 | I3: 16890 | K3: 50 | L3: 24000 | N3: 75 | P3: 50% VSET | R3: 10 | S3: =4.5/200 -> 0.0225 | U3: 30% VSET
A4: 5 | B4: LONG-TERM | D4: 1 | E4: =0.684*(D4/1000)^-0.675 -> 72.4529548 | F4: =1.159*(D4/1000)^-0.604 -> 75.17673085 | H4: 10 | I4: 14520 | K4: 75 | L4: 16000 | N4: 80 | P4: RUSLE | R4: 11 | S4: =$S$3*(R4^2/$R$3^2) -> 0.027225 | U4: RUSLE
D5: 2 | E5: 45 | F5: 46.9 | H5: 15 | I5: 12670 | K5: 100 | L5: 12000 | N5: 85 | R5: 12 | S5: =$S$3*(R5^2/$R$3^2) -> 0.0324
D6: 3 | E6: 34.5 | F6: 39.5 | H6: 20 | I6: 11150 | K6: 150 | L6: 8000 | N6: 90 | R6: 13 | S6: 0.038025
D7: 4 | E7: 28.4 | F7: 33.9 | H7: 25 | I7: 9930 | K7: 200 | L7: 6000 | N7: 95 | R7: 14 | S7: 0.0441
D8: 5 | E8: =0.684*(D8/1000)^-0.675 -> 24.44845102 | F8: =1.159*(D8/1000)^-0.604 -> 28.43842586 | H8: 30 | I8: 8900 | K8: 300 | L8: 4000 | R8: 15 | S8: 0.050625
D9: 6 | E9: 22.7 | F9: 26 | R9: 16 | S9: 0.0576
D10: 7 | E10: 19.481165 | F10: 23.20834757 | R10: 17 | S10: 0.065025
D11: 8 | E11: 17.6 | F11: 20.9 | R11: 18 | S11: 0.0729
D12: 9 | E12: 16.2 | F12: 19.3 | R12: 19 | S12: 0.081225
D13: 10 | E13: 15.31285259 | F13: 18.71041567 | R13: 20 | S13: 0.09
D14: 11 | E14: 14.35873033 | F14: 17.66372335 | R14: 21 | S14: 0.099225
D15: 12 | E15: 13.53969124 | F15: 16.75938058 | R15: 22 | S15: 0.1089
D16: 13 | E16: 12.82756839 | F16: 15.96840913 | R16: 23 | S16: 0.119025
D17: 14 | E17: 12.20168131 | F17: 15.26940458 | R17: 24 | S17: 0.1296
D18: 15 | E18: 11.64647508 | F18: 14.64617825 | R18: 25 | S18: 0.140625
D19: 16 | E19: 11.15000632 | F19: 14.0862362
D20: 17 | E20: 10.70293973 | F20: 13.57976603
D21: 18 | E21: 10.29786421 | F21: 13.11894293
D22: 19 | E22: 9.928815054 | F22: 12.69744268
D23: 20 | E23: 9.590932945 | F23: 12.31009256
D24: 21 | E24: 9.280215852 | F24: 11.95261641
D25: 22 | E25: 8.993335436 | F25: 11.62144515
D26: 23 | E26: 8.727499094 | F26: 11.31357403
D27: 24 | E27: 8.48034486 | F27: 11.02645339
D28: 25 | E28: 8.249860327 | F28: 10.75790416
D29: 26 | E29: 8.034319381 | F29: 10.5060517
D30: 27 | E30: 7.832232318 | F30: 10.26927354
D31: 28 | E31: 7.642306134 | F31: 10.04615756
D32: 29 | E32: 7.46341263 | F32: 9.835468351
D33: 30 | E33: 7.294562586 | F33: 9.636119965
